[Event "Romanian Championship 2024"]
[Site "Eforie Nord"]
[Date "2024.02.24"]
[Round "1.21"]
[White "Bonte, Andrei-Mihai"]
[Black "Burtea, Marius-Valentin"]
[Result "1-0"]
[ECO "E01"]
[WhiteElo "2266"]
[BlackElo "1770"]
[Annotator "TA"]
[PlyCount "115"]
[EventDate "2024.02.24"]
[EventType "swiss"]
[EventCountry "ROU"]
[SourceTitle "playchess.com"]
[Source "ChessBase"]
[SourceQuality "1"]
[TimeControl "40/5400+30:900+30"]

{[%evp 9,115,2,19,8,28,22,16,7,16,15,15,15,25,35,29,9,24,22,18,-7,-4,-1,-6,0,0,0,0,0,0,0,17,0,0,0,0,0,0,0,0,0,10,0,1,0,15,0,9,6,3,0,0,0,6,0,9,9,10,7,6,5,15,5,18,8,23,16,16,16,85,85,85,85,1175,976,1555,1497,1453,1110,1500,917,1459,1285,1627,1059,1697,1648,1631,1675,1202,1564,1779,824,1279,1544,1712,1265,1772,1226,1410,1644,1981,1981,1449,235,1740,235,1896,1167]} 1. d4 {[%emt 0:00:04]} Nf6 {[%emt 0:00:08]} 2. Nf3 {[%emt 0:00:26]} c6 {[%emt 0:00:28]} 3. c4 {[%emt 0:03:06]} d5 {[%emt 0:00:08]} 4. Nc3 {[%emt 0:00:23]} e6 {[%emt 0:00:34]} 5. g3 {[%emt 0:00:41]} a5 {[%emt 0:00:17]} 6. Bg2 {[%emt 0:00:29]} Be7 {[%emt 0:00:12]} 7. O-O {[%emt 0:00:14]} O-O {[%emt 0:00:09]} 8. Nd2 {[%emt 0:10:21][%cal Bf3d2,Bd2b1,Bb1c3][%mdl 32] The position is equal.} b5 {[%emt 0:01:59]} 9. cxb5 {[%emt 0:01:52]} cxb5 {[%emt 0:00:55]} 10. Nxb5 {[%emt 0:04:01]} Qb6 {[%emt 0:00:18]} 11. a4 {[%emt 0:01:13]} Nc6 {[%emt 0:00:22][%cal Oc8a6]} 12. Nb1 {[%emt 0:04:16]} Ba6 {[%emt 0:00:17]} 13. N1c3 {[%emt 0:00:11]} Na7 {[%emt 0:00:40]} 14. Bf4 {[%emt 0:37:34]} Nxb5 {[%emt 0:07:34]} 15. axb5 {[%emt 0:01:04]} Bxb5 {[%emt 0:18:52]} 16. Qb3 {[%emt 0:00:11]} Bb4 $1 {[%emt 0:00:06]} 17. Nxb5 {[%emt 0:00:10]} Qxb5 {[%emt 0:00:09]} 18. Bf3 {[%emt 0:00:09]} Rfc8 {[%emt 0:05:27]} 19. Rfc1 {[%emt 0:00:40]} Qd7 {[%emt 0:08:10]} 20. Qd3 {[%emt 0:03:44]} h6 {[%emt 0:12:58]} 21. h4 {[%emt 0:12:15]} Rxc1+ {[%emt 0:16:33]} 22. Rxc1 {[%emt 0:00:10]} Rc8 {[%emt 0:00:15] Dodges Rc7} 23. Qa6 {[%emt 0:01:44]} Rxc1+ {[%emt 0:00:28]} 24. Bxc1 {[%emt 0:00:06]} Qd8 {[%emt 0:04:21]} 25. Qc6 {[%emt 0:02:04]} Qd6 {[%emt 0:14:03]} 26. Qc2 {[%emt 0:00:55]} Qf8 {[%emt 0:03:13]} 27. Qc6 {[%emt 0:03:44]} Qd6 {[%emt 0:00:08]} 28. Qxd6 {[%emt 0:04:51]} Bxd6 $11 {[%emt 0:00:05][%mdl 4096] Endgame. KBB-KBN} 29. Bd2 {[%emt 0:00:05]} Bb4 {[%emt 0:02:07]} 30. Bf4 {[%emt 0:01:42]} Nd7 {[%emt 0:01:55]} 31. b3 {[%emt 0:03:33]} a4 {[%emt 0:00:53]} 32. bxa4 {[%emt 0:00:07] Threatens to win with Bc7.} Nb6 {[%emt 0:00:05]} 33. e3 {[%emt 0:03:11] Black should prevent Bd1.} Nxa4 {[%emt 0:00:20]} 34. g4 {[%emt 0:00:23]} f6 {[%emt 0:01:13]} 35. Kg2 {[%emt 0:01:17]} Nb6 {[%emt 0:00:09]} 36. Be2 {[%emt 0:00:51]} Nc8 {[%emt 0:00:58]} 37. Bd3 {[%emt 0:00:14]} g5 {[%emt 0:01:11]} 38. Bg3 {[%emt 0:00:18]} Bd6 {[%emt 0:00:49] [#]} (38... Kf7 $11) 39. Ba6 $1 $16 {[%emt 0:00:14]} Bxg3 {[%emt 0:00:24]} 40. Bxc8 {[%emt 0:00:00] KB-KB} Bc7 $2 {[%emt 0:00:00][%mdl 8192] Loses the game.} (40... Bxh4 $16 41. Bxe6+ Kg7 42. Bxd5 Kf8) 41. Bxe6+ $18 {[%emt 0:00:14]} Kf8 {[%emt 0:01:06] [#]} 42. h5 $1 {[%emt 0:00:51]} Ke7 {[%emt 0:00:12]} 43. Bxd5 {[%emt 0:00:06]} Ba5 {[%emt 0:07:43]} 44. Be4 {[%emt 0:01:49] Kf3 is the strong threat.} Be1 {[%emt 0:01:41]} 45. Kf3 {[%emt 0:00:20]} Kf7 {[%emt 0:00:32]} 46. Bd5+ {[%emt 0:01:10]} Ke7 {[%emt 0:02:59]} 47. Ke2 {[%emt 0:00:06]} Bb4 {[%emt 0:00:09]} 48. f3 {[%emt 0:01:04]} Kf8 {[%emt 0:00:18]} 49. Kd3 {[%emt 0:00:07]} Be1 {[%emt 0:00:10]} 50. Bc4 {[%emt 0:01:29]} (50. Ke4 $142 Bd2 51. Bb3) 50... Bf2 {[%emt 0:00:26]} 51. Ke4 {[%emt 0:00:15]} Bg1 {[%emt 0:01:01]} 52. Be6 {[%emt 0:05:30]} Bf2 {[%emt 0:02:25]} 53. d5 {[%emt 0:01:54][%cal Bd4d5,Bd5d6][%mdl 32]} Bg3 {[%emt 0:00:14]} 54. Kf5 {[%emt 0:00:13]} Kg7 {[%emt 0:00:33]} 55. Bd7 {[%emt 0:07:55]} Kf7 {[%emt 0:00:07]} 56. Ba4 {[%emt 0:00:27]} Bc7 $2 {[%emt 0:00:41]} (56... Bd6 57. Bd1 Bc7) 57. Bb3 {[%emt 0:00:29] White threatens d6+ and mate.} Bd8 $2 {[%emt 0:04:18]} (57... Bb6 58. d6+ Kg7) 58. d6+ {[%emt 0:00:12] Weighted Error Value: White=0.07 (flawless) /Black=0.12 (very precise) .  Loses game:     	---       	Black=1      Mistake:       	---       	Black=2      Inaccurate:     	---       	Black=1      OK:         	White=9     	Black=15     Best:        	White=2     	Black=2      Strong:       	White=1     	Black=1} 1-0

[Event "Romanian Championship 2024"]
[Site "Eforie Nord"]
[Date "2024.02.24"]
[Round "1.22"]
[White "Ivancescu, Bogdan-Andrei"]
[Black "Tudor, Henry Edward"]
[Result "0-1"]
[ECO "B43"]
[WhiteElo "1759"]
[BlackElo "2239"]
[Annotator "TA"]
[PlyCount "54"]
[EventDate "2024.02.24"]
[EventType "swiss"]
[EventCountry "ROU"]
[SourceTitle "playchess.com"]
[Source "ChessBase"]
[SourceQuality "1"]
[TimeControl "40/5400+30:900+30"]

{[%evp 12,54,20,4,30,22,46,45,54,7,72,72,77,73,86,85,93,98,97,74,87,42,59,0,36,-26,-22,-203,-192,-181,-178,-374,-362,-375,-365,-384,-383,-385,-319,-494,-491,-487,-479,-454,-499]} 1. e4 {[%emt 0:00:03]} c5 {[%emt 0:00:04]} 2. Nf3 {[%emt 0:00:40]} e6 {[%emt 0:01:16]} 3. d4 {[%emt 0:00:05]} cxd4 {[%emt 0:00:03]} 4. Nxd4 {[%emt 0:00:05]} a6 {[%emt 0:00:02]} 5. Nc3 {[%emt 0:00:07]} Qc7 {[%emt 0:00:05]} 6. Bd3 {[%emt 0:00:14]} Nf6 {[%emt 0:06:21]} 7. f4 {[%emt 0:00:14]} b5 {[%emt 0:06:01][%cal Bb7b5,Bb5b4][%mdl 32]} 8. e5 {[%emt 1:33:02]} b4 $1 {[%emt 0:00:38]} 9. Na4 {[%emt 0:00:00]} Nd5 {[%emt 0:01:27] White is slightly better.} 10. c4 {[%emt 0:00:00]} (10. Be4 $14) 10... Nb6 {[%emt 0:39:18]} (10... bxc3 $11 11. bxc3 Nxc3) 11. Nxb6 $16 {[%emt 0:00:00]} Qxb6 {[%emt 0:00:22]} 12. Nb3 {[%emt 0:00:00]} Bb7 {[%emt 0:17:06]} 13. Qe2 {[%emt 0:00:00]} Be7 {[%emt 0:02:54]} 14. Be3 {[%emt 0:00:00]} Qc7 {[%emt 0:01:10]} 15. O-O {[%emt 0:00:00]} O-O {[%emt 0:00:24]} 16. Qh5 {[%emt 0:00:00][%csl Gd3][%cal Rh5h7]} g6 {[%emt 0:00:13]} 17. Qh3 {[%emt 0:00:00]} ({Better is} 17. Qh6 $1 $14 Rd8 18. a3) 17... Nc6 {[%emt 0:04:53]} 18. Nd2 {[%emt 0:00:00]} (18. Qg3 $14) 18... d6 $11 {[%emt 0:03:58]} 19. f5 $2 {[%emt 0:00:00] This costs White the game.} exf5 $19 {[%emt 0:03:04]} (19... dxe5 $2 {loses.} 20. f6 (20. fxe6 f5 $17) 20... Bd8 21. Ne4 $18 (21. Qh6 Bxf6 22. Rxf6 Qd8 $18)) 20. Bh6 {[%emt 0:00:00]} Nxe5 {[%emt 0:04:35] Strongly threatening ...Rfe8.} 21. Bxf5 $2 {[%emt 0:01:05]} (21. Qg3 {keeps fighting.}) 21... gxf5 {[%emt 0:00:52]} 22. Rae1 {[%emt 0:01:39] [#]} Ng6 {[%emt 0:00:51][%cal Oe7h4]} 23. Bxf8 {[%emt 0:00:54]} Rxf8 {[%emt 0:00:37]} (23... Nxf8 24. Qxf5 Ng6 (24... Bh4 $2 25. g3 $19) 25. Qxf7+ Kh8 26. Qe6 $17) 24. b3 {[%emt 0:01:32]} Bf6 {[%emt 0:00:52]} 25. Qd3 {[%emt 0:00:52]} (25. Kh1 $142) 25... Qc5+ {[%emt 0:01:52] Black is clearly winning.} 26. Kh1 {[%emt 0:00:08]} Kh8 {[%emt 0:00:04]} 27. Rxf5 {[%emt 0:01:00] [#]} Bxg2+ $1 {[%emt 0:00:07][%mdl 512] Weighted Error Value: White=0.46/Black=0.15 (very precise) .  Loses game:     	White=1     	---        Mistake:       	White=5     	Black=1      Inaccurate:     	White=1     	Black=1      OK:         	White=7     	Black=7      Best:        	White=1     	Black=3      Strong:       	---       	Black=1} 0-1

[Event "Romanian Championship 2024"]
[Site "Eforie Nord"]
[Date "2024.02.24"]
[Round "1.23"]
[White "Nastase, Robert-Paul"]
[Black "Visanescu, Dragos-Nicholas"]
[Result "1-0"]
[ECO "A00"]
[WhiteElo "2226"]
[BlackElo "1759"]
[Annotator "TA"]
[PlyCount "103"]
[EventDate "2024.02.24"]
[EventType "swiss"]
[EventCountry "ROU"]
[SourceTitle "playchess.com"]
[Source "ChessBase"]
[SourceQuality "1"]
[TimeControl "40/5400+30:900+30"]

{[%evp 9,103,-11,-11,-22,-19,-20,-14,-18,-9,-17,-14,-25,0,-6,0,0,9,11,23,15,45,37,69,81,89,102,160,135,173,175,146,138,206,219,249,183,275,281,268,241,264,268,306,318,316,310,302,242,381,382,481,466,589,587,595,575,634,588,646,643,618,631,647,623,529,465,518,505,521,498,533,525,499,489,620,605,904,649,692,818,811,769,932,920,1295,1150,1622,1267,1050,959,739,579,29980,29981,29982,29981]} 1. d3 {[%emt 0:00:01]} d5 {[%emt 0:01:07]} 2. d4 {[%emt 0:00:14]} Nf6 {[%emt 0:00:41]} 3. e3 {[%emt 0:00:05]} e6 {[%emt 0:00:05]} 4. c3 {[%emt 0:00:12]} Be7 {[%emt 0:01:07]} 5. Bd3 {[%emt 0:00:08]} b6 {[%emt 0:01:05]} 6. f4 {[%emt 0:00:08]} Bb7 {[%emt 0:00:33]} 7. Nf3 {[%emt 0:00:10]} c5 {[%emt 0:01:20]} 8. O-O {[%emt 0:00:07] The position is equal.} O-O {[%emt 0:04:09]} 9. Qe2 {[%emt 0:01:02]} Ne4 {[%emt 0:00:45]} 10. b3 {[%emt 0:01:30]} Nc6 {[%emt 0:02:32][%cal Bb8c6,Bc6d8,Bd8b7][%mdl 32]} 11. Bb2 {[%emt 0:00:07]} a5 {[%emt 0:00:55]} 12. a4 {[%emt 0:02:33]} Qc8 {[%emt 0:00:59]} 13. Na3 {[%emt 0:01:25]} Ba6 {[%emt 0:09:48]} 14. Nb5 {[%emt 0:00:12]} Nd8 {[%emt 0:24:52]} 15. Rac1 {[%emt 0:00:39]} Nb7 {[%emt 0:02:22]} 16. c4 {[%emt 0:00:49]} Bxb5 {[%emt 0:03:33]} 17. axb5 {[%emt 0:01:03]} Nf6 {[%emt 0:08:50]} ({Better is} 17... f6) 18. Ne5 $16 {[%emt 0:00:35]} a4 {[%emt 0:04:01]} 19. bxa4 {[%emt 0:03:24]} Rxa4 {[%emt 0:01:06]} 20. g4 {[%emt 0:01:57] White has more active pieces.} dxc4 {[%emt 0:07:13]} (20... Na5 $16) 21. Nxc4 $18 {[%emt 0:00:20]} Qd8 {[%emt 0:02:47]} 22. Rfd1 {[%emt 0:01:35] dxc5 would now be deadly.} Nd5 {[%emt 0:02:21] [#]} (22... Rb4 {might work better.}) 23. Bxh7+ $1 {[%emt 0:01:12][%mdl 512]} Kxh7 {[%emt 0:09:18]} 24. Qc2+ {[%emt 0:00:04]} Kg8 {[%emt 0:00:25]} 25. Qxa4 {[%emt 0:00:05]} cxd4 {[%emt 0:01:09]} 26. Bxd4 {[%emt 0:00:35]} Bc5 {[%emt 0:01:46]} 27. Qa2 {[%emt 0:03:27]} Qh4 {[%emt 0:05:17]} 28. Qf2 {[%emt 0:03:14]} Qe7 {[%emt 0:02:29]} (28... Qxg4+ $142 29. Kh1 g6) 29. e4 {[%emt 0:03:01][%csl LRb6,LRd5]} Bxd4 {[%emt 0:01:52]} 30. Rxd4 {[%emt 0:00:07]} ({Not} 30. Qxd4 Nxf4 31. Qe3 (31. Nxb6 $2 {loses.} Ne2+ 32. Kg2 Nxd4 $19) 31... Qc5 $18) 30... Qc5 {[%emt 0:00:31]} 31. exd5 {[%emt 0:01:31]} exd5 {[%emt 0:00:25] [#]} 32. Rdd1 $1 {[%emt 0:00:06]} dxc4 {[%emt 0:00:30]} (32... Qxf2+ 33. Kxf2) 33. Qxc5 {[%emt 0:00:09]} Nxc5 {[%emt 0:00:15]} 34. Rxc4 {[%emt 0:00:04][%mdl 4096] Endgame. KRR-KRN} Rb8 {[%emt 0:00:42]} 35. Rd6 {[%emt 0:00:43]} Kf8 {[%emt 0:00:04]} 36. Kg2 {[%emt 0:01:19]} Ke7 {[%emt 0:00:20]} 37. Rxb6 {[%emt 0:01:14]} Rxb6 {[%emt 0:00:59]} 38. Rxc5 {[%emt 0:00:04] KR-KR} Rd6 {[%emt 0:00:30]} 39. Rc2 {[%emt 0:01:37] Repels Rd2+} Kd7 {[%emt 0:00:40]} 40. Rb2 {[%emt 0:00:00]} Kc7 {[%emt 0:00:00]} 41. Rb3 {[%emt 0:02:22]} f6 {[%emt 0:01:12]} 42. h4 {[%emt 0:00:11][%cal Bh2h4,Bh4h5][%mdl 32]} Rd2+ {[%emt 0:01:36]} 43. Kf3 {[%emt 0:00:07]} Rh2 {[%emt 0:00:36]} 44. Kg3 {[%emt 0:00:05] Prevents Rh3+} Rh1 {[%emt 0:00:10]} 45. h5 {[%emt 0:00:21]} Kb6 {[%emt 0:00:06]} 46. Rb2 {[%emt 0:00:20]} f5 {[%emt 0:03:05]} 47. gxf5 {[%emt 0:03:04][%cal Of5f6] Threatens to win with f6!} Rxh5 {[%emt 0:01:07]} 48. Kg4 {[%emt 0:00:07]} Rh1 {[%emt 0:02:33]} 49. Rb4 {[%emt 0:09:45]} Rg1+ {[%emt 0:01:52]} 50. Kf3 {[%emt 0:00:07]} Kc5 {[%emt 0:01:48] [#]} 51. b6 $1 {[%emt 0:00:52][%cal Bb5b6,Bb6b7][%mdl 32]} Kxb4 {[%emt 0:05:55]} (51... Rf1+ 52. Ke2) 52. b7 {[%emt 0:00:43] Weighted Error Value: White=0.10 (very precise) /Black=0.35.  Mistake:       	---       	Black=4      Inaccurate:     	---       	Black=3      OK:         	White=19    	Black=5      Best:        	White=1     	---        Brilliant:      	White=1     	---} 1-0

[Event "Romanian Championship 2024"]
[Site "Eforie Nord"]
[Date "2024.02.25"]
[Round "2.1"]
[White "Antal, Hunor-Zoltan"]
[Black "Lupulescu, Constantin"]
[Result "1/2-1/2"]
[ECO "B12"]
[WhiteElo "2272"]
[BlackElo "2589"]
[Annotator "TA"]
[PlyCount "32"]
[EventDate "2024.02.24"]
[EventType "swiss"]
[EventCountry "ROU"]
[SourceTitle "playchess.com"]
[Source "ChessBase"]
[SourceQuality "1"]
[TimeControl "40/5400+30:900+30"]

{[%evp 13,32,8,9,9,25,18,59,61,56,0,0,0,0,0,0,0,0,0,0,0,0]} 1. e4 {[%emt 0:00:30]} c6 {[%emt 0:00:04][%cal Bc7c6,Bc6c5,Bc5c4][%mdl 32]} 2. d4 {[%emt 0:00:30]} d5 {[%emt 0:00:06]} 3. e5 {[%emt 0:00:07]} Bf5 {[%emt 0:00:04]} 4. Nf3 {[%emt 0:00:22]} e6 {[%emt 0:00:09]} 5. Be2 {[%emt 0:00:14]} Ne7 {[%emt 0:00:05]} 6. O-O {[%emt 0:00:25]} c5 {[%emt 0:00:09]} 7. c4 {[%emt 0:02:41]} Nbc6 {[%emt 0:00:29]} 8. Nc3 {[%emt 0:06:28]} a6 {[%emt 0:16:14]} 9. Qa4 {[%emt 0:19:28]} (9. dxc5 d4 10. g4 Bg6 $11 (10... Bxg4 11. Nxd4 Qxd4 12. Qxd4 $11)) 9... b5 {[%emt 0:31:51]} 10. cxb5 {[%emt 0:06:17] White is slightly better.} axb5 {[%emt 0:00:50]} 11. Qxb5 {[%emt 0:04:28]} (11. Qd1 $1 $14) 11... c4 $1 $11 {[%emt 0:02:35] The position is equal.} 12. b3 {[%emt 0:27:26]} Ra5 {[%emt 0:06:06]} 13. Qb7 {[%emt 0:00:00] [#] Hoping for Nb5.} Ra7 {[%emt 0:00:08]} 14. Qb5 {[%emt 0:00:06]} Ra5 {[%emt 0:00:04]} 15. Qb7 {Black must now prevent Nb5.} Ra7 {[%emt 0:00:30]} 16. Qb5 {[%emt 0:29:28]} Ra5 {[%emt 0:00:30] Weighted Error Value: White=0.12 (very precise) /Black=0.07 (flawless) .  Mistake:       	White=1     	---        Inaccurate:     	---       	Black=1      OK:         	White=6     	Black=1      Best:        	---       	Black=4      Strong:       	---       	Black=1} 1/2-1/2

[Event "Romanian Championship 2024"]
[Site "Eforie Nord"]
[Date "2024.02.25"]
[Round "2.2"]
[White "Parligras, Mircea-Emilian"]
[Black "Bonte, Andrei-Mihai"]
[Result "1-0"]
[ECO "A90"]
[WhiteElo "2539"]
[BlackElo "2266"]
[Annotator "TA"]
[PlyCount "99"]
[EventDate "2024.02.24"]
[EventType "swiss"]
[EventCountry "ROU"]
[SourceTitle "playchess.com"]
[Source "ChessBase"]
[SourceQuality "1"]
[TimeControl "40/5400+30:900+30"]

{[%evp 14,99,34,23,57,42,61,64,64,55,56,52,42,43,34,52,52,52,85,77,116,59,126,95,99,73,93,100,117,103,110,58,80,66,62,46,51,54,54,0,0,0,54,54,47,46,46,36,36,36,36,36,84,88,113,113,124,96,118,91,130,123,167,167,167,97,167,167,167,167,167,198,181,257,462,347,276,164,650,659,555,575,1416,1389,1078,1192,29973,29972]} 1. d4 {[%emt 0:00:04]} e6 {[%emt 0:00:30]} 2. c4 {[%emt 0:00:27]} f5 {[%emt 0:00:35]} 3. Nf3 {[%emt 0:00:39]} Nf6 {[%emt 0:00:07]} 4. g3 {[%emt 0:00:24]} c6 {[%emt 0:00:56]} 5. Bg2 {[%emt 0:00:15]} d5 {[%emt 0:00:05]} 6. O-O {[%emt 0:00:22]} Bd6 {[%emt 0:00:04]} 7. Nc3 {[%emt 0:00:35]} O-O {[%emt 0:02:40]} 8. Qc2 {[%emt 0:00:53]} Na6 {[%emt 0:03:00]} 9. a3 {[%emt 0:04:01]} Bd7 {[%emt 0:11:35]} 10. c5 {[%emt 0:04:58]} Bc7 {[%emt 0:02:13] White is slightly better.} 11. b4 {[%emt 0:00:29]} Be8 {[%emt 0:02:07]} 12. Bf4 {[%emt 0:23:04]} Bxf4 {[%emt 0:07:52]} 13. gxf4 {[%emt 0:00:05]} Ne4 {[%emt 0:00:33]} 14. e3 {[%emt 0:02:14]} Nxc3 {[%emt 0:10:11]} 15. Qxc3 {[%emt 0:00:05]} Nc7 {[%emt 0:00:06]} 16. Ne5 {[%emt 0:02:01]} Qh4 {[%emt 0:03:45]} 17. f3 {[%emt 0:02:28]} (17. a4 $16) 17... h6 {[%emt 0:14:09]} (17... Na6 $14) 18. Qe1 {[%emt 0:01:46]} Qe7 {[%emt 0:00:06]} 19. Kh1 {[%emt 0:02:08]} Kh7 {[%emt 0:00:09]} 20. Rg1 {[%emt 0:00:27]} Bh5 {[%emt 0:04:52]} 21. Bf1 {[%emt 0:01:48]} Rg8 {[%emt 0:02:30]} 22. h4 {[%emt 0:08:17]} (22. a4 $16) 22... a6 {[%emt 0:07:44]} 23. Ra2 {[%emt 0:00:20]} Ne8 {[%emt 0:00:17]} 24. Qg3 {[%emt 0:16:44] White has more active pieces. The black rooks are passive.} Nf6 {[%emt 0:00:54]} 25. Bd3 {[%emt 0:01:51]} Nd7 {[%emt 0:02:18]} 26. a4 {[%emt 0:03:48]} (26. Nxd7 $14 Qxd7 27. a4) 26... Nxe5 $11 {[%emt 0:01:16]} 27. fxe5 {[%emt 0:00:04]} g5 {[%emt 0:04:38]} ({Black should try} 27... b6 $1 $11) 28. hxg5 $14 {[%emt 0:06:00]} Rxg5 {[%emt 0:00:14]} 29. Qf4 {[%emt 0:03:30]} Rag8 {[%emt 0:03:02]} 30. Rag2 {[%emt 0:01:58]} Qg7 {[%emt 0:04:04]} 31. Rxg5 {[%emt 0:01:01]} hxg5 {[%emt 0:00:05][%cal Bh6g5,Bg5g4][%mdl 32]} 32. Qg3 {[%emt 0:00:46]} Rh8 {[%emt 0:08:36]} (32... g4 $14) 33. Kg2 $16 {[%emt 0:00:21]} Kg8 {[%emt 0:00:10]} 34. Kf2 {[%emt 0:02:17]} g4 {[%emt 0:00:38]} 35. b5 {[%emt 0:04:23]} axb5 {[%emt 0:01:40]} 36. axb5 {[%emt 0:00:02]} cxb5 {[%emt 0:01:54]} 37. Bxb5 {[%emt 0:00:36]} Kf7 {[%emt 0:00:08]} 38. Be2 {[%emt 0:00:41]} Ra8 {[%emt 0:01:44][%cal Bh8a8,Ba8a3,Ba3b3][%mdl 32] [#]} 39. fxg4 {[%emt 0:01:30]} ({White should play} 39. Qh4 $1 $18 Qg6 40. fxg4 fxg4 41. Bxg4 Ra2+ 42. Kg3 Bxg4 43. Qxg4 Qxg4+ 44. Kxg4) 39... fxg4 {[%emt 0:01:03]} (39... Bxg4 $16 {is a better defense.} 40. Bxg4 Qxg4 41. Qxg4 fxg4 42. Rxg4 b6) 40. Qh4 $18 {[%emt 0:00:00]} (40. Bxg4 Ra2+ 41. Ke1 (41. Kf3 Bxg4+ 42. Qxg4 Qh7 $11) 41... Ra1+ 42. Kf2 Ra2+ 43. Kf3 Bxg4+ 44. Qxg4 Qh7 $11) 40... Qg6 {[%emt 0:00:00][%cal Og4g3]} 41. Kg3 {[%emt 0:06:52]} Ra3 {[%emt 0:14:23]} 42. Rf1+ {[%emt 0:00:15]} (42. Bxg4 Bxg4 (42... Qxg4+ 43. Qxg4 Bxg4 44. Kxg4 $11) 43. Qxg4 Rxe3+ 44. Kf2 Qxg4 45. Rxg4 Rb3 $11) 42... Kg8 {[%emt 0:00:29]} 43. Qd8+ {[%emt 0:00:58]} (43. Bxg4 $142 Rxe3+ (43... Qxg4+ 44. Qxg4+ Bxg4 45. Kxg4 $16) (43... Bxg4 $2 44. Qd8+ Kh7 45. Qe7+ Kh6 46. Qf8+ Qg7 47. Rf6+ Kh7 48. Rf7 $18) 44. Kh2 (44. Kf2 Re4 $14) 44... Bxg4 (44... Qxg4 $2 45. Rg1 $18) 45. Qd8+ Kh7 46. Qd7+ Kh6 47. Rf6) 43... Qe8 {[%emt 0:00:17]} (43... Kh7 {was called for.} 44. Qe7+ Qg7 45. Qxg7+ (45. Qxe6 Rxe3+ 46. Kf2 Qg5 $11) 45... Kxg7) 44. Qxe8+ {[%emt 0:05:24]} Bxe8 {[%emt 0:00:03][%mdl 4096] Endgame. KRB-KRB} 45. Kf4 {[%emt 0:00:10]} (45. Kxg4 Rxe3 46. Rf2 Re4+ 47. Kg5 Kg7 $11) (45. Bxg4 $142 Rxe3+ 46. Kf4 Re4+ 47. Kg5 Rxd4 48. Bxe6+ Kg7 49. Rb1) 45... b6 $2 {[%emt 0:02:55]} (45... g3 46. Rg1 (46. Kxg3 Rxe3+ 47. Kf2 Rxe2+ 48. Kxe2 Bb5+ 49. Ke1 Bxf1 $11) 46... Kf8 47. Rxg3 (47. Kxg3 Rxe3+ 48. Kf2 Re4 $11) 47... Ra2) 46. cxb6 {[%emt 0:03:22]} ({Inferior is} 46. Kxg4 Rxe3 47. cxb6 (47. Rg1 Re4+ 48. Kf3+ Kf8 $11) 47... Rxe2 $11) 46... Rb3 {[%emt 0:00:07]} 47. Bxg4 {[%emt 0:00:07]} Rxb6 {[%emt 0:00:11]} 48. Kg5 {[%emt 0:00:07] [#] Black must now prevent Kf6.} Kg7 {[%emt 0:01:59]} 49. Ra1 {[%emt 0:02:16]} Bf7 {[%emt 0:00:29]} 50. Ra7 {[%emt 0:00:10] Weighted Error Value: White=0.20 (precise) /Black=0.57.  Mistake:       	White=6     	Black=6      Inaccurate:     	---       	Black=4      OK:         	White=10    	Black=12     Best:        	White=3     	Black=4} 1-0